fUSD/lending_fUSD_20251118
["ID","MTS","AMOUNT","RATE_DAILY","PERIOD"]
[394350456,1763481039456,-1893.0,0.00024658,2]
[394350457,1763481039466,-343.0,0.00024658,2]
[394350458,1763481039479,-343.0,0.00024658,2]
[394350459,1763481039489,-343.0,0.00024658,2]
[394350460,1763481039499,-343.0,0.00024658,2]
[394350461,1763481039509,-343.0,0.00024658,2]
[394350462,1763481039519,-343.0,0.00024658,2]
[394350463,1763481039529,-343.0,0.00024658,2]
[394350464,1763481039539,-343.0,0.00024658,2]
[394350465,1763481039549,-343.0,0.00024658,2]
[394350466,1763481039559,-343.0,0.00024658,2]
[394350467,1763481039568,-343.0,0.00024658,2]
[394350468,1763481039577,-343.0,0.00024658,2]
[394350469,1763481039587,-343.0,0.00024658,2]
[394350470,1763481039597,-343.0,0.00024658,2]
[394350471,1763481039607,-343.0,0.00024658,2]
[394350472,1763481039617,-343.0,0.00024658,2]
[394350473,1763481039626,-343.0,0.00024658,2]
[394350474,1763481039635,-343.0,0.00024658,2]
[394350475,1763481039644,-343.0,0.00024658,2]
[394350476,1763481039654,-343.0,0.00024658,2]
[394350477,1763481039663,-343.0,0.00024658,2]
[394350478,1763481039673,-1000.0,0.00024658,2]
[394350479,1763481039885,-470.0,0.00024658,2]
[394350480,1763481039895,-470.0,0.00024658,2]
[394350482,1763481039905,-470.0,0.00024658,2]
[394350484,1763481039917,-470.0,0.00024658,2]
[394350485,1763481039937,-470.0,0.00024658,2]
[394350486,1763481039950,-470.0,0.00024658,2]
[394350487,1763481039959,-470.0,0.00024658,2]
[394350488,1763481039969,-326.0,0.00024658,2]
[394350489,1763481039978,-326.0,0.00024658,2]
[394350490,1763481039987,-326.0,0.00024658,2]
[394350491,1763481039997,-326.0,0.00024658,2]
[394350492,1763481040006,-326.0,0.00024658,2]
[394350493,1763481040015,-326.0,0.00024658,2]
[394350494,1763481040024,-326.0,0.00024658,2]
[394350495,1763481040033,-326.0,0.00024658,2]
[394350496,1763481040042,-326.0,0.00024658,2]
[394350497,1763481040051,-326.0,0.00024658,2]
[394350498,1763481040061,-326.0,0.00024658,2]
[394350499,1763481040070,-326.0,0.00024658,2]
[394350500,1763481040080,-326.0,0.00024658,2]
[394350501,1763481040089,-326.0,0.00024658,2]
[394350502,1763481040098,-358.0,0.00024658,2]
[394350503,1763481040107,-358.0,0.00024658,2]
[394350504,1763481040116,-358.0,0.00024658,2]
[394350505,1763481040125,-358.0,0.00024658,2]
[394350506,1763481040134,-358.0,0.00024658,2]
[394350507,1763481040143,-358.0,0.00024658,2]
[394350508,1763481040153,-358.0,0.00024658,2]
[394350509,1763481040163,-297.0,0.00024658,2]
[394350510,1763481040172,-297.0,0.00024658,2]
[394350511,1763481040185,-297.0,0.00024658,2]
[394350512,1763481040195,-297.0,0.00024658,2]
[394350513,1763481040208,-297.0,0.00024658,2]
[394350514,1763481040218,-297.0,0.00024658,2]
[394350515,1763481040227,-297.0,0.00024658,2]
[394350516,1763481040236,-297.0,0.00024658,2]
[394350517,1763481040246,-297.0,0.00024658,2]
[394350518,1763481040255,-297.0,0.00024658,2]
[394350519,1763481040265,-297.0,0.00024658,2]
[394350520,1763481040274,-297.0,0.00024658,2]
[394350521,1763481040283,-297.0,0.00024658,2]
[394350522,1763481040292,-297.0,0.00024658,2]
[394350523,1763481040302,-1123.47,0.00024658,2]
[394350524,1763481040311,-4609.0,0.00024658,2]
[394350525,1763481040321,-1123.47,0.00024932,2]
[394350526,1763481040330,-411.74376832,0.00024935,2]
[394350527,1763481040339,-1123.47,0.00025205,2]
[394350528,1763481040349,-166.66,0.00025375,2]
[394350529,1763481040358,-1123.47,0.00025479,2]
[394350530,1763481040367,-1123.47,0.00025753,2]
[394350531,1763481040377,-257.75451474,0.00025849,2]
[394350532,1763481040386,-160.52,0.00025896,2]
[394350533,1763481040396,-1123.47,0.00026027,2]
[394350534,1763481040405,-166.66,0.00026115,2]
[394350535,1763481040414,-1123.47,0.00026301,2]
[394350536,1763481040423,-1031.0,0.00026403,2]
[394350537,1763481040435,-917.0,0.00026403,2]
[394350538,1763481040444,-1123.54090228,0.00026575,2]
[394350539,1763481040454,-832.09,0.00026676,2]
[394350541,1763481040463,-378.95,0.00026923,30]
[394350543,1763481040473,-6453.0,0.00027066,2]
[394350544,1763481040482,-160.52,0.00027191,2]
[394350545,1763481040491,-257.75451474,0.00028471,2]
[394350546,1763481040501,-160.52,0.00028486,2]
[394350547,1763481040510,-9035.0,0.00029709,2]
[394350548,1763481040520,-160.52,0.00029781,2]
[394350549,1763481040530,-180.37,0.00030137,30]
[394350550,1763481040540,-1091.38915073,0.00030168,2]
[394350551,1763481040550,-216.25521286,0.00030192,2]
[394350552,1763481040559,-7101.41335459,0.00030271,2]
[394350553,1763481040568,-38879.8868577,0.00030361,3]
[394350555,1763481040577,-500.0,0.0003037,3]
[394350557,1763481040587,-500.0,0.0003037,3]
[394350559,1763481040598,-500.0,0.0003037,3]
[394350560,1763481040608,-500.0,0.0003037,3]
[394350562,1763481040617,-500.0,0.0003037,3]
[394350563,1763481040627,-500.0,0.0003037,2]
[394350564,1763481040636,-179549.9703803,0.00030371,2]
[394350565,1763481040645,-3088.8385746,0.00030371,2]
[394350566,1763481040655,-507.96366228,0.00030373,5]
[394350567,1763481040664,-500.0,0.00030373,5]
[394350568,1763481040674,-500.84878588,0.00030373,5]
[394350569,1763481040686,-500.0,0.00030373,5]
[394350570,1763481040696,-500.0,0.00030373,5]
[394350571,1763481040705,-500.0,0.00030373,5]
[394350572,1763481040714,-1091.38915074,0.00030498,2]
[394350573,1763481040723,-1110.78839735,0.00030564,2]
[394350574,1763481040733,-150.4,0.00030564,2]
[394350575,1763481040744,-19439.9434289,0.00030574,3]
[394350576,1763481040753,-609.0,0.00030584,2]
[394350577,1763481040762,-1318.0,0.00030584,2]
[394350579,1763481040771,-575.0,0.00030584,2]
[394350581,1763481040780,-3432.0,0.00030584,2]
[394350583,1763481040789,-907.0,0.00030584,2]
[394350585,1763481040799,-1191.0,0.00030584,2]
[394350587,1763481040810,-1599.0,0.00030584,2]
[394350589,1763481040819,-821.0,0.00030584,2]
[394350591,1763481040828,-793.0,0.00030584,2]
[394350593,1763481040838,-1276.0,0.00030584,2]
[394350595,1763481040847,-150.0,0.00030584,2]
[394350597,1763481040857,-150.0,0.00030584,2]
[394350598,1763481040866,-6490.0,0.00030584,2]
[394350600,1763481040875,-295.499,0.00030584,2]
[394350603,1763481040885,-210.0,0.00030584,2]
[394350604,1763481040897,-705.0,0.00030584,2]
[394350606,1763481040906,-288.139,0.00030584,2]
[394350609,1763481040915,-169.08,0.00030584,2]
[394350610,1763481040924,-150.408,0.00030584,2]
[394350611,1763481040936,-1604.0,0.00030584,2]
[394350612,1763481040945,-150.144,0.00030584,2]
[394350613,1763481040954,-608.451,0.00030584,2]
[394350614,1763481040963,-216.25521286,0.00030615,2]
[394350615,1763481040972,-162.34732619,0.00030688,2]
[394350616,1763481040982,-346.2150588,0.000307,2]
[394350617,1763481040991,-150.4,0.00030748,2]
[394350618,1763481041000,-150.4,0.00030748,2]
[394350619,1763481041010,-136079.604002,0.00030758,3]
[394350620,1763481041019,-21622.7349363,0.00030758,3]
[394350621,1763481041029,-150.4,0.00030758,2]
[394350622,1763481041038,-150.4,0.00030758,2]
[394350623,1763481041047,-150.4,0.00030758,2]
[394350624,1763481041056,-3088.96213376,0.00030763,3]
[394350625,1763481041066,-537.3881987,0.00030767,3]
[394350626,1763481041075,-403.64742423,0.00030767,3]
[394350627,1763481041084,-500.0,0.00030767,3]
[394350628,1763481041093,-155519.547431,0.00030768,3]
[394350629,1763481041103,-61779.2426752,0.00030768,3]
[394350630,1763481041114,-150.4,0.00030768,2]
[394350631,1763481041124,-150.4,0.00030768,2]
[394350632,1763481041133,-160.69470372,0.00030773,5]
[394350633,1763481041142,-500.0,0.00030773,5]
[394350634,1763481041152,-590.90994192,0.00030773,5]
[394350635,1763481041161,-500.0,0.00030773,5]
[394350636,1763481041171,-553.19138914,0.00030773,5]
[394350637,1763481041183,-178.99807806,0.00030773,5]
[394350638,1763481041193,-500.54100373,0.00030773,5]
[394350639,1763481041202,-500.0,0.00030773,5]
[394350640,1763481041212,-500.0,0.00030773,5]
[394350641,1763481041221,-569.20872666,0.00030773,5]
[394350642,1763481041230,-500.0,0.00030773,5]
[394350643,1763481041241,-465.67133023,0.00030773,5]
[394350644,1763481041253,-162.52409237,0.00030773,5]
[394350645,1763481041263,-150.0,0.00030773,5]
[394350646,1763481041272,-500.0,0.00030777,3]
[394350647,1763481041281,-500.0,0.00030777,3]
[394350648,1763481041291,-500.0,0.00030777,3]
[394350649,1763481041300,-151.32338748,0.00030777,3]
[394350650,1763481041310,-500.0,0.00030777,3]
[394350651,1763481041320,-500.0,0.00030777,3]
[394350652,1763481041331,-500.0,0.00030777,2]
[394350653,1763481041341,-500.0,0.00030777,2]
[394350654,1763481041351,-500.0,0.00030777,2]
[394350655,1763481041360,-77759.7737154,0.00030778,3]
[394350656,1763481041370,-46334.4320064,0.00030778,3]
[394350657,1763481041390,-500.0,0.00030787,3]
[394350658,1763481041400,-634.59256275,0.00030787,3]
[394350659,1763481041409,-151.53320447,0.00030787,20]
[394350660,1763481041419,-500.0,0.00030787,3]
[394350661,1763481041429,-500.0,0.00030787,3]
[394350662,1763481041439,-500.0,0.00030787,3]
[394350663,1763481041449,-500.0,0.00030787,2]
[394350664,1763481041459,-500.0,0.00030787,2]
[394350665,1763481041470,-500.0,0.00030787,2]
[394350666,1763481041480,-159.81,0.000308,7]
[394350667,1763481041490,-169.32,0.000308,30]
[394350668,1763481041499,-500.0,0.00030887,30]
[394350669,1763481041509,-20278.27270557,0.00030888,60]
[394350670,1763481041519,-504.36442278,0.00030921,5]
[394350671,1763481041528,-500.99618926,0.00030921,5]
[394350672,1763481041538,-1001.59898174,0.00030921,5]
[394350673,1763481041548,-168.0,0.00030991,2]
[394350674,1763481041558,-160.52,0.00031076,2]
[394350675,1763481041568,-257.75451474,0.00031093,15]
[394350676,1763481041577,-401.0,0.00031115,2]
[394350677,1763481041587,-401.0,0.00031138,7]
[394350678,1763481041597,-168.0,0.00031191,2]
[394350679,1763481041606,-293.68785291,0.00031213,2]
[394350680,1763481041616,-236.4244842,0.00031226,2]
[394350681,1763481041626,-500.0,0.0003132,2]
[394350682,1763481041635,-502.03384973,0.00031321,5]
[394350683,1763481041646,-504.57461567,0.00031321,5]
[394350684,1763481041655,-1000.0,0.00031321,5]
[394350685,1763481041665,-823.08070533,0.00031321,5]
[394350686,1763481041675,-185.93799527,0.00031321,5]
[394350687,1763481041688,-7101.41335451,0.00031528,2]
[394350688,1763481041698,-513.69,0.00031551,2]
[394350689,1763481041707,-6715.8490063,0.00031577,2]
[394350690,1763481041717,-401.0,0.00031599,2]
[394350691,1763481041727,-861.0,0.00031616,2]
[394350692,1763481041737,-401.0,0.00031804,2]
[394350693,1763481041747,-508.2246355,0.00031868,5]
[394350694,1763481041757,-378.95,0.0003197,30]
[394350695,1763481041767,-168.0,0.0003209,2]
[394350696,1763481041777,-401.0,0.00032143,2]
[394350697,1763481041787,-861.0,0.00032284,7]
[394350698,1763481041796,-401.0,0.00032323,2]
[394350699,1763481041807,-169.32,0.000324,30]
[394350700,1763481041819,-861.0,0.00032422,2]
[394350701,1763481041828,-861.0,0.00032513,2]
[394350702,1763481041839,-346.21505876,0.00032514,2]
[394350703,1763481041849,-861.0,0.00032595,2]
[394350704,1763481041859,-150.4,0.00032601,2]
[394350705,1763481041869,-6316.0,0.00032611,3]
[394350706,1763481041880,-861.0,0.00032685,7]
[394350707,1763481041889,-3699.0,0.00032735,7]
[394350708,1763481041899,-7101.41335451,0.00032785,2]
[394350709,1763481041908,-382.56,0.00032809,2]
[394350710,1763481041917,-500.0,0.00032877,7]
[394350711,1763481041927,-500.0,0.00032877,7]
[394350712,1763481041938,-427.00492286,0.00032877,7]
[394350713,1763481041947,-861.0,0.00032955,2]
[394350714,1763481041956,-861.0,0.00033108,2]
[394350715,1763481041966,-406.0,0.0003311,2]
[394350716,1763481041975,-3420.36,0.00033139,2]
[394350717,1763481041985,-861.0,0.00033145,2]
[394350718,1763481041995,-488.0,0.0003315,7]
[394350719,1763481042004,-832.09,0.00033165,2]
[394350720,1763481042014,-1815.0,0.000332,7]
[394350721,1763481042024,-6715.8490063,0.00033244,2]
[394350722,1763481042033,-861.0,0.00033457,2]
[394350723,1763481042042,-247.27121064,0.00033484,2]
[394350724,1763481042052,-609.0,0.00033584,2]
[394350725,1763481042061,-1318.0,0.00033584,2]
[394350726,1763481042070,-575.0,0.00033584,2]
[394350727,1763481042079,-3432.0,0.00033584,2]
[394350728,1763481042089,-907.0,0.00033584,2]
[394350729,1763481042098,-1191.0,0.00033584,2]
[394350730,1763481042107,-1599.0,0.00033584,2]
[394350731,1763481042117,-821.0,0.00033584,2]
[394350732,1763481042126,-793.0,0.00033584,2]
[394350733,1763481042135,-1276.0,0.00033584,2]
[394350734,1763481042144,-150.0,0.00033584,2]
[394350735,1763481042153,-150.0,0.00033584,2]
[394350736,1763481042162,-6490.0,0.00033584,2]
[394350737,1763481042172,-705.0,0.00033584,2]
[394350738,1763481042183,-150.0,0.00033584,2]
[394350739,1763481042193,-150.0,0.00033584,2]
[394350740,1763481042202,-150.0,0.00033584,2]
[394350741,1763481042212,-1604.0,0.00033584,2]
[394350742,1763481042221,-861.0,0.00033624,2]
[394350743,1763481042230,-3699.0,0.00033685,2]
[394350744,1763481042239,-257.75451474,0.00033715,15]
[394350745,1763481042249,-3699.0,0.00033763,2]
[394350746,1763481042258,-180.37,0.00033792,30]
[394350747,1763481042267,-150.4,0.00033834,2]
[394350748,1763481042277,-20295.74199964,0.00033844,2]
[394350749,1763481042294,-1832.55076809,0.00033844,2]
[394350750,1763481042388,-506.77396754,0.00033584,2]
[394350751,1763481042411,-54.22603246,0.00033584,2]
[394350752,1763481042421,-205.7805156,0.00033844,2]
[394350753,1763481042435,-1741.00000002,0.00033844,2]
[394350754,1763481042484,-3551.308973,0.00033844,2]
[394350755,1763481042500,-3.85774365,0.00033844,2]
[394350756,1763481042510,-703.64225629,0.00033844,2]
[394350757,1763481042573,500.0,0.00041682,30]
[394350767,1763481043237,-191.59,0.00031507,120]
[394350768,1763481043248,-9296.34774371,0.00033844,2]
[394350769,1763481043258,-150.0,0.00033908,7]
[394350770,1763481043268,-488.0,0.00033972,8]
[394350771,1763481043278,-7101.41335451,0.00034041,2]
[394350772,1763481043288,-1372.432,0.00034177,38]
[394350773,1763481043298,-346.21505876,0.00034327,2]
[394350774,1763481043308,-1239.0,0.000344,7]
[394350775,1763481043318,-1324.90230867,0.000345,14]
[394350776,1763481043327,-488.0,0.00034794,9]
[394350777,1763481043337,-200.00346523,0.000349,120]
[394350778,1763481043346,-6715.8490063,0.00034911,2]
[394350779,1763481043356,-388.43879605,0.00035,30]
[394350780,1763481043366,-402.40204642,0.00035,2]
[394350781,1763481043376,-1222.66033566,0.00035,2]
[394350782,1763481043386,-1000.0,0.00035,120]
[394350783,1763481043396,-8981.39781541,0.00035,30]
[394350784,1763481043405,-216.01995756,0.00035,2]
[394350785,1763481043415,-7101.41335451,0.00035298,2]
[394350786,1763481043425,-382.56,0.00035344,2]
[394350787,1763481043437,-344.78434648,0.00035616,10]
[394350788,1763481043447,-150.4,0.00035869,2]
[394350789,1763481043456,-500.0,0.00035878,3]
[394350790,1763481043466,-381.2298369,0.00035878,2]
[394350791,1763481043476,-8858.55,0.00035879,2]
[394350792,1763481043486,-1000.0,0.00035879,2]
[394350793,1763481043496,-3589.27,0.00035879,2]
[394350794,1763481043506,-300.0,0.00035879,2]
[394350795,1763481043516,-5000.0,0.00035879,2]
[394350796,1763481043526,-475.7,0.00035879,120]
[394350797,1763481043535,-3378.21,0.00035879,2]
[394350798,1763481043545,-3424.2,0.00035879,2]
[394350799,1763481043554,-321.50997291,0.00036,120]
[394350800,1763481043564,-150.0,0.00036,4]
[394350801,1763481043574,-150.0,0.00036,4]
[394350802,1763481043583,-150.0,0.00036,4]
[394350803,1763481043592,-150.0,0.00036,4]
[394350804,1763481043601,-150.0,0.00036,4]
[394350805,1763481043611,-150.0,0.00036,4]
[394350806,1763481043620,-150.0,0.00036,4]
[394350807,1763481043630,-236.06238243,0.00036,4]
[394350808,1763481043639,-150.0,0.00036,4]
[394350809,1763481043648,-150.0,0.00036,4]
[394350810,1763481043658,-150.0,0.00036,4]
[394350811,1763481043667,-150.0,0.00036,4]
[394350812,1763481043677,-150.0,0.00036,4]
[394350813,1763481043689,-189.83833413,0.00036,4]
[394350814,1763481043698,-150.0,0.00036,4]
[394350815,1763481043708,-150.0,0.00036,4]
[394350816,1763481043718,-150.0,0.00036,4]
[394350817,1763481043727,-40063.0136456,0.00036041,2]
[394350818,1763481043738,-150.0,0.00036073,5]
[394350819,1763481043747,-162.34732618,0.00036134,9]
[394350820,1763481043757,-346.21505876,0.00036141,2]
[394350821,1763481043766,-257.75451474,0.00036338,15]
[394350822,1763481043776,-184.94840009,0.00036346,2]
[394350823,1763481043785,-1792.0,0.00036548,120]
[394350824,1763481043794,-9133.0,0.00036548,120]
[394350825,1763481043804,-7101.41335451,0.00036555,2]
[394350826,1763481043819,-150.4,0.00036568,2]
[394350827,1763481043829,-6715.8490063,0.00036578,2]
[394350828,1763481043839,-609.0,0.00036584,2]
[394350829,1763481043848,-1318.0,0.00036584,2]
[394350830,1763481043858,-575.0,0.00036584,2]
[394350831,1763481043869,-727.601,0.00036584,2]
[394350832,1763481043878,-1599.0,0.00036584,2]
[394350833,1763481043888,-821.0,0.00036584,2]
[394350834,1763481043897,-304.747,0.00036584,2]
[394350835,1763481043907,-150.0,0.00036584,2]
[394350836,1763481043916,-777.733,0.00036584,2]
[394350837,1763481043925,-703.0,0.00036584,2]
[394350838,1763481043937,-150.0,0.00036584,2]
[394350839,1763481043946,-1604.0,0.00036584,2]
[394350840,1763481043956,-150.0,0.00036584,2]
[394350841,1763481043966,-561.0,0.00036584,2]
[394350842,1763481043976,-250.0,0.00036621,5]
[394350843,1763481043985,-521.0589029,0.000367,120]
[394350844,1763481044154,-1590.21674865,0.000368,2]
[394350845,1763481044164,-500.0,0.00036855,30]
[394350846,1763481044173,-1000.0,0.000369,2]
[394350847,1763481044185,-689.2130458,0.00036912,2]
[394350848,1763481044194,-830.12816329,0.00037,2]
[394350849,1763481044204,-41972.52630032,0.00037,5]
[394350850,1763481044213,-163.54326757,0.00037,2]
[394350851,1763481044222,-150.0,0.00037,7]
[394350852,1763481044232,-150.0,0.00037,7]
[394350853,1763481044241,-150.0,0.00037,7]
[394350854,1763481044251,-378.95,0.00037017,30]
[394350855,1763481044260,-500.0,0.0003706,30]
[394350856,1763481044269,-350.0,0.00037168,5]
[394350857,1763481044279,-201.98872538,0.000372,120]
[394350858,1763481044288,-201.98872536,0.000372,120]
[394350859,1763481044297,-201.98872536,0.000372,120]
[394350860,1763481044308,-201.98872536,0.000372,120]
[394350861,1763481044317,-3469.41406576,0.00037306,2]
[394350862,1763481044352,-5469.85258494,0.00037306,2]
[394350863,1763481044362,-150.4,0.00037308,2]
[394350864,1763481044371,-180.37,0.00037318,60]
[394350865,1763481044381,-150.0,0.00037333,7]
[394350866,1763481044390,-150.0,0.00037333,7]
[394350867,1763481044399,-150.0,0.00037333,7]
[394350868,1763481044409,-4166.0,0.0003743,5]
[394350869,1763481044419,-1000.0,0.00037521,30]
[394350870,1763481044429,-1000.0,0.00037521,30]
[394350871,1763481044439,-1023.89500754,0.00037521,30]
[394350872,1763481044448,-1000.0,0.00037521,30]
[394350873,1763481044458,-1000.0,0.00037521,30]
[394350874,1763481044467,-1996.10016985,0.00037521,30]
[394350875,1763481044477,-1000.0,0.00037521,30]
[394350876,1763481044486,-247.27121062,0.00037533,2]
[394350877,1763481044496,-500.0,0.00037696,30]
[394350878,1763481044505,-437.48898412,0.00037716,5]
[394350879,1763481044514,-7101.41335451,0.00037812,2]
[394350880,1763481044523,-500.0,0.00037847,30]
[394350881,1763481044533,-199.62763338,0.0003788,2]
[394350882,1763481044542,-346.21505876,0.00037955,2]
[394350883,1763481044551,-150.0,0.00037973,7]
[394350884,1763481044560,-244.218,0.00037973,7]
[394350885,1763481044569,-826.0,0.00038,30]
[394350886,1763481044579,-278.80694255,0.00038,120]
[394350887,1763481044588,-150.0,0.00038,7]
[394350888,1763481044597,-150.0,0.00038,7]
[394350889,1763481044606,-150.0,0.00038,7]
[394350890,1763481044615,-150.0,0.00038,7]
[394350891,1763481044625,-150.0,0.00038,7]
[394350892,1763481044634,-150.0,0.00038,7]
[394350893,1763481044643,-500.0,0.00038073,30]
[394350894,1763481044652,-255.04,0.0003811,2]
[394350895,1763481044661,-6715.8490063,0.00038245,2]
[394350896,1763481044671,-1601.1808,0.00038256,10]
[394350897,1763481044680,-255.04,0.0003834,2]
[394350898,1763481044690,-500.0,0.00038355,3]
[394350899,1763481044699,-424.09201291,0.00038356,3]
[394350900,1763481044708,-315.58573749,0.00038356,3]
[394350901,1763481044717,-486.44350391,0.00038356,3]
[394350902,1763481044727,-415.97216141,0.00038356,3]
[394350903,1763481044736,-395.0499944,0.00038356,3]
[394350904,1763481044745,-250.18177592,0.00038356,3]
[394350905,1763481044755,-172.96260285,0.00038356,3]
[394350906,1763481044764,-165.2148912,0.00038356,3]
[394350907,1763481044774,-357.76821854,0.00038356,3]
[394350908,1763481044783,-380.4,0.00038356,3]
[394350909,1763481044792,-197.25834191,0.00038356,3]
[394350910,1763481044802,-295.91177418,0.00038356,3]
[394350911,1763481044813,-404.50412457,0.00038356,3]
[394350912,1763481044822,-241.60985537,0.00038356,3]
[394350913,1763481044830,-312.16734387,0.00038356,3]
[394350914,1763481044839,-513.19206972,0.00038356,3]
[394350915,1763481044849,-367.78,0.00038356,3]
[394350916,1763481044858,-291.44,0.00038356,3]
[394350917,1763481044867,-248.97900823,0.00038356,3]
[394350918,1763481044876,-200.32000441,0.00038356,3]
[394350919,1763481044886,-356.47199693,0.00038356,3]
[394350920,1763481044895,-500.0,0.00038356,2]
[394350921,1763481044905,-500.0,0.00038356,2]
[394350922,1763481044914,-478.39377396,0.00038356,3]
[394350923,1763481044924,-154.80181861,0.00038356,3]
[394350924,1763481044934,-268.74218991,0.00038356,3]
[394350925,1763481044943,-240.16976571,0.00038356,3]
[394350926,1763481044952,-156.45432357,0.00038356,3]
[394350927,1763481044961,-383.4779219,0.00038356,3]
[394350928,1763481044970,-369.12,0.00038356,3]
[394350929,1763481044980,-436.63726775,0.00038356,3]
[394350930,1763481044989,-220.2662865,0.00038356,3]
[394350931,1763481044999,-346.54,0.00038356,3]
[394350932,1763481045008,-431.09333002,0.00038356,3]
[394350933,1763481045018,-468.70910434,0.00038356,3]
[394350934,1763481045027,-206.62777487,0.00038356,3]
[394350935,1763481045036,-494.94509793,0.00038356,3]
[394350936,1763481045046,-352.38275914,0.00038356,3]
[394350937,1763481045055,-422.51,0.00038356,3]
[394350938,1763481045064,-196.98056253,0.00038356,3]
[394350939,1763481045074,-162.28,0.00038356,3]
[394350940,1763481045083,-408.99564022,0.00038356,3]
[394350941,1763481045094,-365.45,0.00038356,3]
[394350942,1763481045103,-381.08,0.00038356,3]
[394350943,1763481045113,-195.1,0.00038356,3]
[394350944,1763481045122,-355.58968911,0.00038356,3]
[394350945,1763481045131,-403.93424191,0.00038356,3]
[394350946,1763481045140,-292.68700954,0.00038356,3]
[394350947,1763481045149,-239.18854312,0.00038356,3]
[394350948,1763481045158,-161.23448958,0.00038356,3]
[394350949,1763481045167,-500.8585319,0.00038356,3]
[394350950,1763481045177,-469.22086087,0.00038356,3]
[394350951,1763481045191,-278.15712063,0.00038356,3]
[394350952,1763481045200,-497.81615521,0.00038356,3]
[394350953,1763481045209,-375.95022084,0.00038356,3]
[394350954,1763481045219,-408.53211831,0.00038356,3]
[394350955,1763481045228,-314.69587723,0.00038356,3]
[394350956,1763481045237,-282.78905129,0.00038356,3]
[394350957,1763481045247,-327.55638112,0.00038356,3]
[394350958,1763481045257,-169.54139469,0.00038356,3]
[394350959,1763481045266,-334.74700838,0.00038356,3]
[394350960,1763481045275,-408.07376132,0.00038356,3]
[394350961,1763481045285,-501.59085028,0.00038356,3]
[394350962,1763481045295,-298.63963113,0.00038356,3]
[394350963,1763481045304,-314.72148208,0.00038356,3]
[394350964,1763481045313,-320.88827719,0.00038356,3]
[394350965,1763481045322,-206.04524179,0.00038356,3]
[394350966,1763481045330,-252.07827868,0.00038356,3]
[394350967,1763481045340,-343.58427326,0.00038356,3]
[394350968,1763481045349,-342.1829463,0.00038356,3]
[394350969,1763481045358,-600.0,0.00038356,3]
[394350970,1763481045367,-463.21541912,0.00038356,3]
[394350971,1763481045376,-255.86214332,0.00038356,3]
[394350972,1763481045385,-328.87257373,0.00038356,3]
[394350973,1763481045394,-243.31,0.00038356,3]
[394350974,1763481045403,-496.60459908,0.00038356,3]
[394350975,1763481045412,-260.11775094,0.00038356,3]
[394350976,1763481045422,-300.0,0.00038356,3]
[394350977,1763481045433,-244.95055878,0.00038356,3]
[394350978,1763481045443,-268.52539408,0.00038356,3]
[394350979,1763481045452,-313.525562,0.00038356,3]
[394350980,1763481045461,-486.21014652,0.00038356,3]
[394350981,1763481045471,-500.0,0.00038356,3]
[394350982,1763481045480,-264.11673823,0.00038356,3]
[394350983,1763481045489,-417.07885392,0.00038356,3]
[394350984,1763481045499,-211.7468021,0.00038356,3]
[394350985,1763481045508,-500.0,0.00038356,15]
[394350986,1763481045517,-376.30923648,0.00038356,3]
[394350987,1763481045526,-473.38638607,0.00038356,3]
[394350988,1763481045535,-392.56928864,0.00038356,3]